fUSD/lending_fUSD_20250629
["ID","MTS","AMOUNT","RATE_DAILY","PERIOD"]
[368483422,1751190660604,-171.22915612,0.00027845,2]
[368483423,1751190660615,-25708.31185903,0.00027845,2]
[368483424,1751190660625,-15392.0623278,0.00027845,2]
[368483425,1751190660635,-200.0,0.00027848,2]
[368483426,1751190660645,-945.15094402,0.00027865,2]
[368483427,1751190660656,-200.0,0.00027869,2]
[368483428,1751190660666,-291.19606475,0.00027874,2]
[368483429,1751190660676,-905.15094402,0.00027874,2]
[368483430,1751190660687,-200.0,0.0002788,2]
[368483431,1751190660698,-2110.0,0.00027881,2]
[368483432,1751190660707,-905.15094402,0.00027887,2]
[368483433,1751190660717,-945.15094402,0.0002789,2]
[368483434,1751190660727,-155.69661166,0.000279,2]
[368483435,1751190660737,-155.69661166,0.000279,2]
[368483436,1751190660747,-2500.0,0.000279,10]
[368483437,1751190660756,-155.69661166,0.000279,2]
[368483438,1751190660766,-2878.98,0.0002792,2]
[368483439,1751190660776,-1000.0,0.00027921,5]
[368483440,1751190660786,-1000.0,0.00027921,2]
[368483441,1751190660796,-1000.0,0.00027921,5]
[368483442,1751190660806,-1089.05138233,0.00027921,5]
[368483443,1751190660816,-1000.0,0.00027921,5]
[368483444,1751190660825,-1000.0,0.00027921,5]
[368483445,1751190660835,-331.54469405,0.00027928,2]
[368483446,1751190660846,-2043.46130184,0.00027934,18]
[368483447,1751190660855,-3082.74424612,0.00027935,2]
[368483448,1751190660865,-15392.0623278,0.00027936,2]
[368483449,1751190660874,-1727.0648,0.0002794,2]
[368483450,1751190660885,-490.0,0.00027944,3]
[368483451,1751190660894,-590.68,0.00027944,3]
[368483452,1751190660904,-500.0,0.00027944,3]
[368483453,1751190660914,-500.0,0.00027944,3]
[368483454,1751190660923,-500.0,0.00027944,3]
[368483455,1751190660934,-256.88698308,0.00027944,3]
[368483456,1751190660943,-308.56,0.00027945,3]
[368483457,1751190660953,-490.0,0.00027945,3]
[368483458,1751190660964,-490.0,0.00027945,3]
[368483459,1751190660973,-490.0,0.00027945,3]
[368483460,1751190660983,-904.24,0.00027945,3]
[368483461,1751190660993,-490.0,0.00027945,3]
[368483462,1751190661002,-490.0,0.00027945,3]
[368483463,1751190661012,-948.9,0.00027945,3]
[368483464,1751190661022,-667.1,0.00027945,3]
[368483465,1751190661031,-490.0,0.00027945,3]
[368483466,1751190661041,-513.09,0.00027945,3]
[368483467,1751190661051,-490.0,0.00027945,3]
[368483468,1751190661061,-490.0,0.00027945,3]
[368483469,1751190661070,-978.74,0.00027945,3]
[368483470,1751190661081,-642.29,0.00027945,3]
[368483471,1751190661090,-490.0,0.00027945,3]
[368483472,1751190661100,-490.0,0.00027945,3]
[368483473,1751190661110,-490.0,0.00027945,3]
[368483474,1751190661119,-490.0,0.00027945,3]
[368483475,1751190661129,-1186.44,0.00027945,3]
[368483476,1751190661139,-490.0,0.00027945,3]
[368483477,1751190661148,-490.0,0.00027945,3]
[368483478,1751190661158,-2554.302964,0.00027945,3]
[368483479,1751190661168,-490.0,0.00027945,3]
[368483480,1751190661178,-853.16,0.00027945,3]
[368483481,1751190661188,-490.0,0.00027945,3]
[368483482,1751190661198,-2816.157543,0.00027945,3]
[368483483,1751190661207,-490.0,0.00027945,3]
[368483484,1751190661217,-490.0,0.00027945,3]
[368483485,1751190661226,-490.0,0.00027945,3]
[368483486,1751190661236,-490.0,0.00027945,3]
[368483487,1751190661245,-2200.380726,0.00027945,3]
[368483488,1751190661255,-490.0,0.00027945,3]
[368483489,1751190661264,-500.85,0.00027945,3]
[368483490,1751190661273,-151.959343,0.00027945,3]
[368483491,1751190661282,-392.680419,0.00027945,3]
[368483492,1751190661292,-490.0,0.00027945,3]
[368483493,1751190661301,-490.0,0.00027945,3]
[368483494,1751190661310,-490.0,0.00027945,3]
[368483495,1751190661321,-490.0,0.00027945,3]
[368483496,1751190661334,-887.72,0.00027945,3]
[368483497,1751190661344,-490.0,0.00027945,3]
[368483498,1751190661353,-490.0,0.00027945,3]
[368483499,1751190661363,-656.47,0.00027945,3]
[368483500,1751190661661,-556.18,0.00027945,3]
[368483501,1751190661679,-571.97,0.00027945,3]
[368483502,1751190661690,-490.0,0.00027945,3]
[368483503,1751190661700,-261.53663726,0.00027945,3]
[368483504,1751190661709,-858.42,0.00027945,3]
[368483505,1751190661718,-451.4842555,0.00027945,3]
[368483506,1751190661728,-490.0,0.00027945,3]
[368483507,1751190661738,-648.74,0.00027945,3]
[368483508,1751190661748,-490.0,0.00027945,3]
[368483509,1751190661757,-1167.71,0.00027945,3]
[368483510,1751190661766,-490.0,0.00027945,3]
[368483511,1751190661775,-167.777922,0.00027945,3]
[368483512,1751190661784,-642.42,0.00027945,3]
[368483513,1751190661794,-490.0,0.00027945,3]
[368483514,1751190661803,-523.68,0.00027945,3]
[368483515,1751190661812,-490.0,0.00027945,3]
[368483516,1751190661821,-490.0,0.00027945,3]
[368483517,1751190661831,-490.0,0.00027945,3]
[368483518,1751190661840,-536.34958212,0.00027945,3]
[368483519,1751190661849,-490.0,0.00027945,3]
[368483520,1751190661858,-490.0,0.00027945,3]
[368483521,1751190661867,-490.0,0.00027945,3]
[368483522,1751190661877,-625.75,0.00027945,3]
[368483523,1751190661887,-490.0,0.00027945,3]
[368483524,1751190661897,-490.0,0.00027945,3]
[368483525,1751190661907,-490.0,0.00027945,3]
[368483526,1751190661919,-490.0,0.00027945,3]
[368483527,1751190661929,-490.0,0.00027945,3]
[368483528,1751190661939,-490.0,0.00027945,3]
[368483529,1751190661949,-490.0,0.00027945,3]
[368483530,1751190661959,-490.0,0.00027945,3]
[368483531,1751190661969,-1529.36,0.00027945,3]
[368483532,1751190661979,-494.57633273,0.00027945,3]
[368483533,1751190661988,-490.0,0.00027945,3]
[368483534,1751190661998,-490.0,0.00027945,3]
[368483535,1751190662007,-490.0,0.00027945,3]
[368483536,1751190662017,-490.0,0.00027945,3]
[368483537,1751190662026,-490.0,0.00027945,3]
[368483538,1751190662036,-725.47,0.00027945,3]
[368483539,1751190662045,-167.777922,0.00027945,3]
[368483540,1751190662055,-490.0,0.00027945,3]
[368483541,1751190662064,-490.0,0.00027945,3]
[368483542,1751190662074,-490.0,0.00027945,3]
[368483543,1751190662083,-490.0,0.00027945,3]
[368483544,1751190662093,-490.0,0.00027945,3]
[368483545,1751190662102,-490.0,0.00027945,3]
[368483546,1751190662111,-439.69778262,0.00027945,3]
[368483547,1751190662121,-502.4188359,0.00027945,3]
[368483548,1751190662130,-490.0,0.00027945,3]
[368483549,1751190662140,-1837.93,0.00027945,3]
[368483550,1751190662149,-490.0,0.00027945,3]
[368483551,1751190662159,-490.0,0.00027945,3]
[368483552,1751190662168,-677.59,0.00027945,3]
[368483553,1751190662177,-961.81,0.00027945,3]
[368483554,1751190662187,-490.0,0.00027945,3]
[368483555,1751190662197,-490.0,0.00027945,3]
[368483556,1751190662206,-2500.0,0.00027945,14]
[368483557,1751190662216,-490.0,0.00027945,3]
[368483558,1751190662225,-811.6,0.00027945,3]
[368483559,1751190662234,-490.0,0.00027945,3]
[368483560,1751190662244,-701.76,0.00027945,3]
[368483561,1751190662253,-490.0,0.00027945,3]
[368483562,1751190662263,-801.55,0.00027945,3]
[368483563,1751190662272,-490.0,0.00027945,3]
[368483564,1751190662281,-490.0,0.00027945,3]
[368483565,1751190662290,-493.56,0.00027945,3]
[368483566,1751190662299,-490.0,0.00027945,3]
[368483567,1751190662309,-490.0,0.00027945,3]
[368483568,1751190662318,-490.0,0.00027945,3]
[368483569,1751190662332,-490.0,0.00027945,3]
[368483570,1751190662342,-458.22709999,0.00027945,3]
[368483571,1751190662351,-490.0,0.00027945,3]
[368483572,1751190662361,-490.0,0.00027945,3]
[368483573,1751190662371,-490.0,0.00027945,3]
[368483574,1751190662380,-740.41,0.00027945,3]
[368483575,1751190662389,-930.82,0.00027945,3]
[368483576,1751190662399,-1134.82,0.00027945,3]
[368483577,1751190662408,-629.08,0.00027945,3]
[368483578,1751190662418,-507.56,0.00027945,3]
[368483579,1751190662427,-490.0,0.00027945,3]
[368483580,1751190662437,-490.0,0.00027945,3]
[368483581,1751190662447,-490.0,0.00027945,3]
[368483582,1751190662456,-490.0,0.00027945,3]
[368483583,1751190662465,-490.0,0.00027945,3]
[368483584,1751190662475,-508.09,0.00027945,3]
[368483585,1751190662484,-490.0,0.00027945,3]
[368483586,1751190662493,-1395.58,0.00027945,3]
[368483587,1751190662504,-596.83,0.00027945,3]
[368483588,1751190662513,-516.57,0.00027945,3]
[368483589,1751190662522,-490.0,0.00027945,3]
[368483590,1751190662531,-2015.14,0.00027945,3]
[368483591,1751190662540,-629.30891732,0.00027945,3]
[368483592,1751190662549,-1527.96,0.00027945,3]
[368483593,1751190662559,-490.0,0.00027945,3]
[368483594,1751190662568,-394.44998898,0.00027945,3]
[368483595,1751190662578,-490.0,0.00027945,3]
[368483596,1751190662588,-490.0,0.00027945,3]
[368483597,1751190662597,-615.0,0.00027945,3]
[368483598,1751190662607,-490.0,0.00027945,3]
[368483599,1751190662616,-490.0,0.00027945,3]
[368483600,1751190662625,-490.0,0.00027945,3]
[368483601,1751190662634,-889.47,0.00027945,3]
[368483602,1751190662644,-490.0,0.00027945,3]
[368483603,1751190662653,-2302.9,0.00027945,3]
[368483604,1751190662663,-490.0,0.00027945,3]
[368483605,1751190662672,-490.0,0.00027945,3]
[368483606,1751190662682,-490.0,0.00027945,3]
[368483607,1751190662692,-490.0,0.00027945,3]
[368483608,1751190662702,-490.0,0.00027945,3]
[368483609,1751190662712,-490.0,0.00027945,3]
[368483610,1751190662721,-490.0,0.00027945,3]
[368483611,1751190662730,-743.01,0.00027945,3]
[368483612,1751190662739,-490.0,0.00027945,3]
[368483613,1751190662748,-945.27,0.00027945,3]
[368483614,1751190662757,-643.27,0.00027945,3]
[368483615,1751190662766,-1940.61,0.00027945,3]
[368483616,1751190662776,-490.0,0.00027945,3]
[368483617,1751190662785,-490.0,0.00027945,3]
[368483618,1751190662795,-1952.95,0.00027945,3]
[368483619,1751190662804,-1201.96,0.00027945,3]
[368483620,1751190662814,-1310.06,0.00027945,3]
[368483621,1751190662823,-490.0,0.00027945,3]
[368483622,1751190662833,-590.62621401,0.00027945,3]
[368483623,1751190662842,-369.84,0.00027945,3]
[368483624,1751190662852,-490.0,0.00027945,3]
[368483625,1751190662861,-493.18505014,0.00027945,3]
[368483626,1751190662870,-1125.22,0.00027945,3]
[368483627,1751190662879,-1224.35,0.00027945,3]
[368483628,1751190662889,-490.0,0.00027945,3]
[368483629,1751190662898,-976.06,0.00027945,3]
[368483630,1751190662907,-749.58,0.00027945,3]
[368483631,1751190662916,-728.8,0.00027945,3]
[368483632,1751190662926,-957.88,0.00027945,3]
[368483633,1751190662936,-1824.88,0.00027945,3]
[368483634,1751190662946,-490.0,0.00027945,3]
[368483635,1751190662955,-603.75,0.00027945,3]
[368483636,1751190662964,-490.0,0.00027945,3]
[368483637,1751190662974,-490.0,0.00027945,3]
[368483638,1751190662983,-490.0,0.00027945,3]
[368483639,1751190662993,-490.0,0.00027945,3]
[368483640,1751190663002,-490.0,0.00027945,3]
[368483641,1751190663012,-538.77,0.00027945,3]
[368483642,1751190663021,-776.78,0.00027945,3]
[368483643,1751190663031,-960.82,0.00027945,3]
[368483644,1751190663041,-894.84,0.00027945,3]
[368483645,1751190663051,-490.0,0.00027945,3]
[368483646,1751190663062,-490.0,0.00027945,3]
[368483647,1751190663072,-490.0,0.00027945,3]
[368483648,1751190663082,-1904.77,0.00027945,3]
[368483649,1751190663091,-490.0,0.00027945,3]
[368483650,1751190663101,-490.0,0.00027945,3]
[368483651,1751190663111,-490.0,0.00027945,3]
[368483652,1751190663121,-1462.39,0.00027945,3]
[368483653,1751190663130,-2300.89,0.00027945,3]
[368483654,1751190663140,-490.0,0.00027945,3]
[368483655,1751190663150,-694.52,0.00027945,3]
[368483656,1751190663160,-650.78,0.00027945,3]
[368483657,1751190663170,-490.0,0.00027945,3]
[368483658,1751190663180,-490.0,0.00027945,3]
[368483659,1751190663190,-2228.41,0.00027945,3]
[368483660,1751190663200,-490.0,0.00027945,3]
[368483661,1751190663209,-1649.19,0.00027945,3]
[368483662,1751190663219,-490.0,0.00027945,3]
[368483663,1751190663228,-490.0,0.00027945,3]
[368483664,1751190663238,-203.91259195,0.00027945,3]
[368483665,1751190663248,-2026.94,0.00027945,3]
[368483666,1751190663258,-490.0,0.00027945,3]
[368483667,1751190663268,-490.0,0.00027945,3]
[368483668,1751190663278,-490.0,0.00027945,3]
[368483669,1751190663288,-843.7,0.00027945,3]
[368483670,1751190663298,-490.0,0.00027945,3]
[368483671,1751190663308,-490.0,0.00027945,3]
[368483672,1751190663317,-490.0,0.00027945,3]
[368483673,1751190663331,-490.0,0.00027945,3]
[368483674,1751190663341,-490.0,0.00027945,3]
[368483675,1751190663351,-571.61,0.00027945,3]
[368483676,1751190663361,-1147.84,0.00027945,3]
[368483677,1751190663370,-490.0,0.00027945,3]
[368483678,1751190663379,-490.0,0.00027945,3]
[368483679,1751190663388,-1556.08,0.00027945,3]
[368483680,1751190663397,-896.97,0.00027945,3]
[368483681,1751190663406,-490.0,0.00027945,3]
[368483682,1751190663417,-594.67,0.00027945,3]
[368483683,1751190663426,-490.0,0.00027945,3]
[368483684,1751190663436,-1027.62,0.00027945,3]
[368483685,1751190663445,-707.16,0.00027945,3]
[368483686,1751190663455,-500.0,0.00027945,3]
[368483687,1751190663465,-792.35,0.00027945,3]
[368483688,1751190663474,-490.0,0.00027945,3]
[368483689,1751190663484,-880.72,0.00027945,3]
[368483690,1751190663494,-490.0,0.00027945,3]
[368483691,1751190663503,-490.0,0.00027945,3]
[368483692,1751190663513,-490.0,0.00027945,3]
[368483693,1751190663522,-151.0,0.00027945,7]
[368483694,1751190663532,-151.0,0.00027945,7]
[368483695,1751190663542,-490.0,0.00027945,3]
[368483696,1751190663552,-780.47,0.00027945,3]
[368483697,1751190663562,-490.0,0.00027945,3]
[368483698,1751190663572,-560.33,0.00027945,3]
[368483699,1751190663581,-525.19,0.00027945,3]
[368483700,1751190663591,-944.59,0.00027945,3]
[368483701,1751190663600,-490.0,0.00027945,3]
[368483702,1751190663609,-1653.81,0.00027945,3]
[368483703,1751190663619,-490.0,0.00027945,3]
[368483704,1751190663628,-1620.77,0.00027945,3]
[368483705,1751190663637,-1900.77,0.00027945,3]
[368483706,1751190663647,-490.0,0.00027945,3]
[368483707,1751190663657,-490.0,0.00027945,3]
[368483708,1751190663667,-490.0,0.00027945,3]
[368483709,1751190663677,-521.24,0.00027945,3]
[368483710,1751190663686,-1487.61,0.00027945,3]
[368483711,1751190663696,-1556.78,0.00027945,3]
[368483712,1751190663706,-490.0,0.00027945,3]
[368483713,1751190663716,-1633.03,0.00027945,3]
[368483714,1751190663725,-1046.71,0.00027945,3]
[368483715,1751190663734,-490.0,0.00027945,3]
[368483716,1751190663744,-506.3,0.00027945,3]
[368483717,1751190663753,-1936.24,0.00027945,3]
[368483718,1751190663763,-514.5,0.00027945,3]
[368483719,1751190663773,-490.0,0.00027945,3]
[368483720,1751190663783,-2262.43,0.00027945,3]
[368483721,1751190663792,-490.0,0.00027945,3]
[368483722,1751190663802,-1268.88,0.00027945,3]
[368483723,1751190663812,-665.95,0.00027945,3]
[368483724,1751190663821,-2474.6,0.00027945,3]
[368483725,1751190663831,-689.16,0.00027945,3]
[368483726,1751190663840,-490.0,0.00027945,3]
[368483727,1751190663851,-490.0,0.00027945,3]
[368483728,1751190663861,-490.0,0.00027945,3]
[368483729,1751190663871,-858.86,0.00027945,3]
[368483730,1751190663881,-1400.07,0.00027945,3]
[368483731,1751190663890,-490.0,0.00027945,3]
[368483732,1751190663900,-490.0,0.00027945,3]
[368483733,1751190663910,-730.59,0.00027945,3]
[368483734,1751190663920,-666.33,0.00027945,3]
[368483735,1751190663930,-1700.28,0.00027945,3]
[368483736,1751190663939,-818.45,0.00027945,3]
[368483737,1751190663952,-709.17,0.00027945,3]
[368483738,1751190663962,-1024.15,0.00027945,3]
[368483739,1751190664072,-490.0,0.00027945,3]
[368483740,1751190664082,-247.28654383,0.00027945,3]
[368483741,1751190664091,-2038.87,0.00027945,3]
[368483742,1751190664103,-1027.52,0.00027945,3]
[368483743,1751190664113,-490.0,0.00027945,3]
[368483744,1751190664126,-534.02,0.00027945,3]
[368483745,1751190664136,-2394.84,0.00027945,3]
[368483746,1751190664146,-490.0,0.00027945,3]
[368483747,1751190664156,-1561.51,0.00027945,3]
[368483748,1751190664168,-490.0,0.00027945,3]
[368483749,1751190664178,-490.0,0.00027945,3]
[368483750,1751190664188,-490.0,0.00027945,3]
[368483751,1751190664198,-1167.05,0.00027945,3]
[368483752,1751190664208,-899.19,0.00027945,3]
[368483753,1751190664218,-935.31,0.00027945,3]
[368483754,1751190664227,-771.06,0.00027945,3]
[368483755,1751190664238,-490.0,0.00027945,3]
[368483756,1751190664247,-610.33,0.00027945,3]
[368483757,1751190664257,-490.0,0.00027945,3]
[368483758,1751190664268,-490.0,0.00027945,3]
[368483759,1751190664277,-715.86,0.00027945,3]
[368483760,1751190664287,-490.0,0.00027945,3]
[368483761,1751190664297,-1503.84,0.00027945,3]
[368483762,1751190664307,-527.52694443,0.00027945,3]
[368483763,1751190664318,-1626.28,0.00027945,3]
[368483764,1751190664333,-566.4,0.00027945,3]
[368483765,1751190664343,-934.93,0.00027945,3]
[368483766,1751190664353,-589.35,0.00027945,3]
[368483767,1751190664362,-490.0,0.00027945,3]
[368483768,1751190664373,-490.0,0.00027945,3]
[368483769,1751190664382,-516.29,0.00027945,3]
[368483770,1751190664391,-2211.02,0.00027945,3]
[368483771,1751190664402,-1313.26,0.00027945,3]
[368483772,1751190664413,-878.98,0.00027945,3]
[368483773,1751190664424,-490.0,0.00027945,3]
[368483774,1751190664433,-2018.3,0.00027945,3]
[368483775,1751190664443,-490.0,0.00027945,3]
[368483776,1751190664452,-1320.46,0.00027945,3]
[368483777,1751190664462,-490.0,0.00027945,3]
[368483778,1751190664471,-1272.1,0.00027945,3]
[368483779,1751190664480,-2254.95,0.00027945,3]
[368483780,1751190664490,-490.0,0.00027945,3]
[368483781,1751190664499,-490.0,0.00027945,3]
[368483782,1751190664509,-490.0,0.00027945,3]
[368483783,1751190664518,-490.0,0.00027945,3]
[368483784,1751190664528,-801.49,0.00027945,3]
[368483785,1751190664537,-793.92,0.00027945,3]
[368483786,1751190664546,-1409.04,0.00027945,3]
[368483787,1751190664556,-566.98,0.00027945,3]
[368483788,1751190664566,-855.39,0.00027945,3]
[368483789,1751190664575,-520.23,0.00027945,3]
[368483790,1751190664584,-1383.19,0.00027945,3]
[368483791,1751190664594,-503.31,0.00027945,3]
[368483792,1751190664603,-490.0,0.00027945,3]
[368483793,1751190664612,-490.0,0.00027945,3]
[368483794,1751190664622,-257.50107699,0.00027945,3]
[368483795,1751190664631,-490.0,0.00027945,3]
[368483796,1751190664640,-490.0,0.00027945,3]
[368483797,1751190664648,-1411.93,0.00027945,3]
[368483798,1751190664657,-490.0,0.00027945,3]
[368483799,1751190664667,-907.17,0.00027945,3]
[368483800,1751190664677,-1733.55,0.00027945,3]
[368483801,1751190664686,-490.0,0.00027945,3]
[368483802,1751190664695,-1161.29,0.00027945,3]
[368483803,1751190664705,-490.0,0.00027945,3]
[368483804,1751190664714,-490.0,0.00027945,3]
[368483805,1751190664724,-306.47044677,0.00027945,3]
[368483806,1751190664734,-490.0,0.00027945,3]
[368483807,1751190664744,-490.0,0.00027945,3]
[368483808,1751190664753,-490.0,0.00027945,3]
[368483809,1751190664763,-648.19,0.00027945,3]
[368483810,1751190664773,-492.59,0.00027945,3]
[368483811,1751190664783,-664.2,0.00027945,3]
[368483812,1751190664792,-1411.98,0.00027945,3]
[368483813,1751190664801,-490.0,0.00027945,3]
[368483814,1751190664811,-1476.05,0.00027945,3]
[368483815,1751190664819,-490.0,0.00027945,3]
[368483816,1751190664829,-490.0,0.00027945,3]
[368483817,1751190664838,-490.0,0.00027945,3]
[368483818,1751190664847,-490.0,0.00027945,3]
[368483819,1751190664856,-2483.68,0.00027945,3]
[368483820,1751190664866,-1539.15,0.00027945,3]
[368483821,1751190664875,-490.0,0.00027945,3]
[368483822,1751190664885,-622.78,0.00027945,3]
[368483823,1751190664894,-2320.44,0.00027945,3]
[368483824,1751190664903,-490.0,0.00027945,3]
[368483825,1751190664913,-490.0,0.00027945,3]
[368483826,1751190664923,-894.95,0.00027945,3]
[368483827,1751190664933,-701.41,0.00027945,3]
[368483828,1751190664942,-490.0,0.00027945,3]
[368483829,1751190664951,-506.93535497,0.00027945,3]
[368483830,1751190664961,-151.0,0.00027945,7]
[368483831,1751190664971,-1005.08,0.00027945,3]
[368483832,1751190664982,-526.1,0.00027945,3]
[368483833,1751190664992,-490.0,0.00027945,3]
[368483834,1751190665001,-490.0,0.00027945,3]
[368483835,1751190665010,-1032.78,0.00027945,3]
[368483836,1751190665020,-1199.97,0.00027945,3]
[368483837,1751190665029,-1283.76,0.00027945,3]
[368483838,1751190665042,-549.61,0.00027945,3]
[368483839,1751190665051,-450.02264435,0.00027945,3]
[368483840,1751190665061,-490.0,0.00027945,3]
[368483841,1751190665071,-490.0,0.00027945,3]
[368483842,1751190665080,-901.15,0.00027945,3]
[368483843,1751190665089,-545.6,0.00027945,3]
[368483844,1751190665099,-499.26454471,0.00027945,3]
[368483845,1751190665109,-841.45,0.00027945,3]
[368483846,1751190665118,-1956.7,0.00027945,3]
[368483847,1751190665128,-525.0,0.00027945,3]
[368483848,1751190665138,-908.9,0.00027945,3]
[368483849,1751190665147,-490.0,0.00027945,3]
[368483850,1751190665157,-490.0,0.00027945,3]
[368483851,1751190665167,-1559.17,0.00027945,3]
[368483852,1751190665178,-490.0,0.00027945,3]
[368483853,1751190665187,-772.36,0.00027945,3]
[368483854,1751190665196,-490.0,0.00027945,3]
[368483855,1751190665205,-490.0,0.00027945,3]
[368483856,1751190665215,-1731.31,0.00027945,3]
[368483857,1751190665224,-490.0,0.00027945,3]
[368483858,1751190665233,-1241.41,0.00027945,3]
[368483859,1751190665243,-490.0,0.00027945,3]
[368483860,1751190665252,-2257.75,0.00027945,3]
[368483861,1751190665261,-1736.54,0.00027945,3]
[368483862,1751190665271,-2325.03,0.00027945,3]
[368483863,1751190665280,-613.43,0.00027945,3]
[368483864,1751190665290,-490.0,0.00027945,3]
[368483865,1751190665299,-1117.78,0.00027945,3]
[368483866,1751190665308,-1022.6,0.00027945,3]
[368483867,1751190665319,-896.69,0.00027945,3]
[368483868,1751190665334,-490.0,0.00027945,3]
[368483869,1751190665344,-998.0,0.00027945,3]
[368483870,1751190665354,-490.0,0.00027945,3]
[368483871,1751190665363,-490.0,0.00027945,3]
[368483872,1751190665373,-490.0,0.00027945,3]
[368483873,1751190665382,-1382.19,0.00027945,3]
[368483874,1751190665391,-490.0,0.00027945,3]
[368483875,1751190665399,-490.0,0.00027945,3]
[368483876,1751190665408,-1087.69,0.00027945,3]
[368483877,1751190665419,-490.0,0.00027945,3]
[368483878,1751190665429,-937.32,0.00027945,3]
[368483879,1751190665438,-490.0,0.00027945,3]
[368483880,1751190665446,-490.0,0.00027945,3]
[368483881,1751190665455,-490.0,0.00027945,3]
[368483882,1751190665464,-490.0,0.00027945,3]
[368483883,1751190665474,-2003.29,0.00027945,3]
[368483884,1751190665484,-490.0,0.00027945,3]
[368483885,1751190665493,-1073.82,0.00027945,3]
[368483886,1751190665502,-635.25302578,0.00027945,3]
[368483887,1751190665512,-1428.66,0.00027945,3]
[368483888,1751190665522,-490.0,0.00027945,3]
[368483889,1751190665532,-906.56,0.00027945,3]
[368483890,1751190665541,-490.0,0.00027945,3]
[368483891,1751190665550,-751.94,0.00027945,3]
[368483892,1751190665560,-1284.2,0.00027945,3]
[368483893,1751190665570,-995.73,0.00027945,3]
[368483894,1751190665579,-730.89,0.00027945,3]
[368483895,1751190665588,-254.69793829,0.00027945,3]
[368483896,1751190665598,-490.0,0.00027945,3]
[368483897,1751190665607,-490.0,0.00027945,3]
[368483898,1751190665616,-490.0,0.00027945,3]
[368483899,1751190665625,-490.0,0.00027945,3]
[368483900,1751190665634,-490.0,0.00027945,3]
[368483901,1751190665644,-490.0,0.00027945,3]
[368483902,1751190665653,-490.0,0.00027945,3]
[368483903,1751190665662,-490.0,0.00027945,3]
[368483904,1751190665672,-3819.49,0.00027945,3]
[368483905,1751190665681,-490.0,0.00027945,3]
[368483906,1751190665691,-614.58,0.00027945,3]
[368483907,1751190665700,-2099.43,0.00027945,3]
[368483908,1751190665710,-591.09,0.00027945,3]
[368483909,1751190665719,-490.0,0.00027945,3]
[368483910,1751190665729,-490.0,0.00027945,3]
[368483911,1751190665738,-490.0,0.00027945,3]
[368483912,1751190665747,-1553.22,0.00027945,3]
[368483913,1751190665757,-1763.09,0.00027945,3]
[368483914,1751190665766,-930.34,0.00027945,3]
[368483915,1751190665776,-587.32,0.00027945,3]
[368483916,1751190665785,-1288.37,0.00027945,3]
[368483917,1751190665795,-490.0,0.00027945,3]
[368483918,1751190665803,-4450.47,0.00027945,3]
[368483919,1751190665813,-935.65,0.00027945,3]
[368483920,1751190665822,-490.0,0.00027945,3]
[368483921,1751190665831,-490.0,0.00027945,3]